Cogmind - Beta 13 @@@ ROGUE MODE // 2024.04.09 @ 16:48:29 Player: AntinDisguise Result: Destroyed by G-34 Mercenary with Small Laser Performance ------------- Evolutions (1) 500 Regions Visited (2) 400 Robots Destroyed (29) 145 Value Destroyed (636) 636 Prototype IDs (1) 20 Alien Tech Used (0) 0 Bonus (0) 0 TOTAL SCORE: 1701 Bonus ------- None Cogmind --------- Core Integrity 0/400 Matter 300/300 Energy 100/100 System Corruption 0% Temperature Cool (6) Movement Core (1350) Ox26 Location -9/Materials Parts ------- > --- POWER (2) -------- (None) > --- PROPULSION (2) --- (None) > --- UTILITY (3) ------ Heat Sink Huge Storage Unit > --- WEAPON (2) ------- (None) > --- INVENTORY (25) --- (None) Peak State ------------ > --- POWER ------------ Ion Engine > --- PROPULSION ------- Improved Aluminum Leg Improved Aluminum Leg > --- UTILITY ---------- Small Storage Unit Huge Storage Unit Visual Processing Unit > --- WEAPON ----------- EMP Blaster EMP Blaster > --- INVENTORY -------- Light Treads Light Treads Medium Laser Small Laser [Rating: 13] Favorites ----------- Power Ion Engine Engine Ion Engine Propulsion Aluminum Leg Treads Light Treads Leg Aluminum Leg Utility Small Storage Unit Device Heat Sink Storage Small Storage Unit Processor Visual Processing Unit Weapon Small Laser Energy Gun Small Laser Launcher EMP Blaster Build | -11 -10 -9 ------- Run | Yrd Mat Mat Slots Evolved 2 | . . 2 Power 1 | . . 1 Propulsion . | . . . Utility 1 | . . 1 Weapon . | . . . Parts Attached 31 | 6 11 14 Power 3 | 1 1 1 Engine 3 | 1 1 1 Core . | . . . Reactor . | . . . Propulsion 10 | 2 5 3 Treads 2 | . . 2 Leg 8 | 2 5 1 Wheel . | . . . Hover . | . . . Flight . | . . . Utility 5 | 1 1 3 Device 1 | . . 1 Storage 3 | 1 . 2 Processor 1 | . 1 . Hackware . | . . . Protection . | . . . Artifact . | . . . Weapon 13 | 2 4 7 Energy Gun 9 | 2 2 5 Energy Cannon . | . . . Ballistic Gun . | . . . Ballistic Cannon . | . . . Launcher 4 | . 2 2 Special Weapon . | . . . Impact Weapon . | . . . Slashing Weapon . | . . . Piercing Weapon . | . . . Special Melee Weapon . | . . . Unidentified Prototypes 1 | . . 1 Parts Lost 14 | . 3 11 Power 2 | . 1 1 Propulsion 5 | . 1 4 Utility 1 | . . 1 Weapon 6 | . 1 5 Highest Loss Streak 5 | . 1 5 To Critical Strikes . | . . . Average Slot Usage (%) 75 | . 84 63 Engine 10 | . 13 7 Treads 6 | . . 14 Leg 17 | . 27 5 Device 1 | . . 2 Storage 12 | . 14 10 Processor 6 | . 5 8 Energy Gun 16 | . 21 9 Launcher 3 | . 2 4 Naked Turns . | . . . Heaviest Build 83 | 14 18 83 Greatest Support 40 | 20 26 40 Greatest Overweight (x) 26 | . 4 26 Average Overweight (x) . | . . . Largest Inventory Capacity 25 | 8 8 25 Average Capacity 9 | 7 8 12 Most Carried 6 | 4 6 6 Average Carried 2 | 2 3 1 Final Capacity 25 | 8 8 25 Final Carried 6 | 2 6 . Class Distribution -------------------- 100% | Mutant Dominant Class ---------------- Mutant | -10/Materials Mutant | -9/Materials Resources | -11 -10 -9 ----------- Run | Yrd Mat Mat Matter Collected 570 | 233 165 172 Remotely . | . . . Salvage Created 995 | . 419 576 Parts 63 | . 36 27 Haulers Intercepted 1 | . . 1 Recyclers Shooed 1 | . 1 . Parts Field Recycled . | . . . Retrieved Matter . | . . . Parts Self-Destructed . | . . . Prevented . | . . . Kills | -11 -10 -9 ------- Run | Yrd Mat Mat Combat Hostiles Destroyed 21 | . 13 8 Guns 18 | . 12 6 AOE 3 | . 1 2 Classes Destroyed 8 | . 5 3 Worker 2 | . 1 1 Builder 1 | . 1 . Hauler 1 | . . 1 Recycler 1 | . . 1 Watcher 3 | . 2 1 Swarmer 9 | . 9 . Grunt 10 | . 4 6 Sentry 2 | . . 2 Best Kill Streak 4 | . 4 3 Combat Bots Only 3 | . 3 3 Max Kills in Single Turn 1 | . 1 1 Gunslinging . | . . . Exploded 1 | . 1 1 Melee . | . . . Uniques/NPCs Destroyed . | . . . Combat | -11 -10 -9 -------- Run | Yrd Mat Mat Hostile Shots Fired 192 | . 78 114 Missed 50 | . 21 29 Damage Taken 1891 | . 612 1279 Core 529 | . 122 407 Absorbed by Shields . | . . . Core Remaining (%) 75 | 100 51 . Volleys Fired 122 | . 52 70 Largest 2 | . 2 2 Hottest 90 | . 90 90 Shots Fired 176 | . 91 85 Gun 158 | . 83 75 Cannon . | . . . Launcher 18 | . 8 10 Special . | . . . Kinetic . | . . . Thermal 149 | . 74 75 Explosive . | . . . Electromagnetic 27 | . 17 10 Robot Hit Streak 11 | . 6 11 Robot Miss Streak 7 | . 7 4 Penetration Max . | . . . Secondary Targets 2 | . . 2 Max Gunslinging Chain 1 | . . 1 Shots Hit Robots 103 | . 46 57 Core Hits 47 | . 23 24 Critical Kills . | . . . Critical Parts Destroyed . | . . . Critical Strikes 4 | . 3 1 Burn 4 | . 3 1 Melee Attacks . | . . . Impact . | . . . Slashing . | . . . Piercing . | . . . Sneak Attacks . | . . . Combat Hostiles . | . . . Follow-up Attacks . | . . . Damage Inflicted 1536 | . 689 847 Guns 1124 | . 546 578 Cannons . | . . . Explosions 410 | . 141 269 Melee . | . . . Ramming 2 | . 2 . Kinetic . | . . . Thermal 1081 | . 503 578 Explosive 11 | . . 11 Electromagnetic 442 | . 184 258 Impact . | . . . Slashing . | . . . Piercing . | . . . Highest Corruption . | . . . Average Corruption . | . . . Corruption Purged . | . . . Corruption Blocked . | . . . Overload Shots . | . . . Overflow Damage 44 | . 4 40 Projectiles . | . . . Explosions 44 | . 4 40 Melee . | . . . Knockbacks . | . . . Impact . | . . . Kinetic . | . . . Secondary . | . . . Self-Inflicted Damage 293 | . 74 219 Shots 11 | . 4 7 Rammed . | . . . Targets Rammed 1 | . 1 . Kicked 1 | . 1 . Crushed . | . . . Highest Temperature 264 | . 264 261 Average Temperature 84 | . 79 96 Received Heat Transfer 681 | . 114 567 Effects 1 | . . 1 Energy Bleed 1 | . . 1 Siege Activations . | . . . Robots Corrupted . | . . . Combat Hostiles . | . . . Parts Fried 6 | . 3 3 Impact Corruptions . | . . . Robots Melted . | . . . Combat Hostiles . | . . . Parts Melted 4 | . 2 2 Heat Transferred 3030 | . 1584 1446 Parts Sabotaged . | . . . Parts Stolen . | . . . Parts Stripped . | . . . Power Chain Reactions 2 | . 2 . Alert | -11 -10 -9 ------- Run | Yrd Mat Mat Peak Influence 265 | . 265 240 Initial 111 | . . 111 Average 123 | . 107 159 Maximum Alert Level 1 | . 1 1 Low Security (%) 76 | 100 94 51 Level 1 23 | . 5 48 Level 2 . | . . . Level 3 . | . . . Level 4 . | . . . Level 5 . | . . . High Security . | . . . Max Security . | . . . Squads Dispatched 4 | . 2 2 Investigation 1 | . 1 . Extermination . | . . . Reinforcement 3 | . 1 2 Assault . | . . . Garrison . | . . . Intercept . | . . . Searches Triggered . | . . . Construction Impeded 1 | . . 1 Haulers Reinforced . | . . . Active Scanning Responses . | . . . Cargo Convoy Interrupts . | . . . Stealth | -11 -10 -9 --------- Run | Yrd Mat Mat Distress Signals 4 | . 1 3 Communications Jammed . | . . . Distress Signals . | . . . Times Spotted 36 | . 22 14 Peak Tracking Total 6 | . 4 6 Tactical Retreats 1 | . 1 . Traps | -11 -10 -9 ------- Run | Yrd Mat Mat Traps Triggered 3 | . 3 . Indirectly . | . . . Trap Hack Attempts . | . . . Triggered . | . . . Disarmed . | . . . Reprogrammed . | . . . Reused . | . . . Traps Extracted . | . . . Installed . | . . . Triggered . | . . . Machines | -11 -10 -9 ---------- Run | Yrd Mat Mat Machines Disabled 4 | . 2 2 Max in Single Turn 1 | . 1 1 Machines Repaired . | . . . Machines Dismantled . | . . . Machines Sabotaged . | . . . Overloaded Fab Kills . | . . . Hacking | -11 -10 -9 --------- Run | Yrd Mat Mat Machines Accessed 1 | . . 1 Terminals 1 | . . 1 Fabricators . | . . . Repair Stations . | . . . Recycling Units . | . . . Scanalyzers . | . . . Garrison Access . | . . . Total Hacks 7 | . . 7 Successful 4 | . . 4 Failed 3 | . . 3 Catastrophic . | . . . Database Lockouts . | . . . Manual . | . . . Terminals 7 | . . 7 Fabricators . | . . . Repair Stations . | . . . Recycling Units . | . . . Scanalyzers . | . . . Garrison Access . | . . . Terminal Hacks 4 | . . 4 Record 1 | . . 1 Emergency Access Points 1 | . . 1 Transport Status 1 | . . 1 Zone Layout 1 | . . 1 Fabricator Hacks . | . . . Repair Station Hacks . | . . . Recycling Unit Hacks . | . . . Scanalyzer . | . . . Garrison Access Hacks . | . . . Unauthorized Hacks . | . . . Terminals . | . . . Fabricators . | . . . Repair Stations . | . . . Recycling Units . | . . . Scanalyzers . | . . . Garrison Access . | . . . Data Cores Recovered . | . . . Used . | . . . Hacking Detections 1 | . . 1 Full Trace Events . | . . . Feedback Events . | . . . Feedback Blocked . | . . . Robot Schematics Acquired . | . . . Robots Built . | . . . Authchips . | . . . Time . | . . . Total Robot Build Rating . | . . . Part Schematics Acquired . | . . . Parts Built . | . . . Authchips . | . . . Time . | . . . Total Part Build Rating . | . . . Parts Repaired . | . . . Time . | . . . Parts Recycled . | . . . Recycled Matter . | . . . Retrieved Matter . | . . . Retrieved Components . | . . . Parts Scanalyzed . | . . . Part Schematics Acquired . | . . . Parts Damaged . | . . . Bothacking | -11 -10 -9 ------------ Run | Yrd Mat Mat Used RIF Installer . | . . . Robots Hacked . | . . . Non-combat . | . . . Combat . | . . . Robot Hacks Applied . | . . . Relay Couplers Released . | . . . Fabnet Peak Effective % . | . . . Robots Rewired . | . . . Allies Hacked . | . . . Hacks Repelled . | . . . Allies | -11 -10 -9 -------- Run | Yrd Mat Mat Total Allies . | . . . Largest Group . | . . . Highest-Rated Group . | . . . Highest-Rated Ally . | . . . Total Orders . | . . . Ally Attacks . | . . . Total Damage . | . . . Kills . | . . . Allies Corrupted . | . . . Allies Melted . | . . . Intel | -11 -10 -9 ------- Run | Yrd Mat Mat Robot Analysis Total . | . . . Derelict Logs Recovered . | . . . Drone Launches . | . . . Drone Recoveries . | . . . Exploration | -11 -10 -9 ------------- Run | Yrd Mat Mat Turns Passed 1277 | 72 674 531 Spaces Moved 652 | 52 404 196 Core 14 | 5 4 5 Treads 121 | . . 121 Legs 517 | 47 400 70 Wheels . | . . . Hover . | . . . Flight . | . . . Fastest Speed 50 | 50 120 120 Average Speed 137 | 113 121 179 Slowest Speed 1350 | 120 250 1350 Overloaded Moves . | . . . Propulsion Burnouts . | . . . Robots Hopped . | . . . Cave-ins Triggered . | . . . Exploration Rate (%) 26 | 3 55 20 Regions Visited 2 Branch Regions . Pre-discovered Areas . | . . . Known Exits Taken . | . . . Unknown Exits Taken 2 | 1 1 . Scrap Searched . | . . . Spaces Dug . | . . . Terrain Destroyed 42 | . 6 36 Melee . | . . . Projectile . | . . . AOE 42 | . 6 36 Terrain Rammed . | . . . Walls Destroyed . | . . . Machines Disabled . | . . . Actions | -11 -10 -9 --------- Run | Yrd Mat Mat Total 854 | 65 497 292 Wait 13 | . 13 . Move 650 | 51 403 196 Hop . | . . . Pick Up 28 | 8 14 6 Fast Attach . | . . . Attach 27 | 6 9 12 Detach 1 | . . 1 Swap 4 | . 2 2 Drop 8 | . 3 5 Fire 122 | . 52 70 Melee . | . . . Ram . | . . . Kick 1 | . 1 . Crush . | . . . Escape Stasis . | . . . Rewire . | . . . Trap . | . . . Miscellaneous . | . . . Route ------- -11/Scrapyard -10/Materials (discovered 3 exits: *Mat / [*Min x2]) -9/Materials (discovered 1 exit: [*Min]) History --------- Turn | Location | Event 38 | -11/Scrapyard | Discovered new exit (range 13) 73 | -11/Scrapyard | Entered Materials 306 | -10/Materials | Build established: Mutant 530 | -10/Materials | Discovered new exit (range 11) 657 | -10/Materials | Discovered new exit (range 14) 738 | -10/Materials | Discovered new exit (range 8) 747 | -10/Materials | Entered another Materials area 747 | -9/Materials | Evolved 2 slots: Power x1, Utility x1 928 | -9/Materials | Lost 5 parts (2n3w) 1107 | -9/Materials | Core integrity fell below 50% 1250 | -9/Materials | Discovered new exit (range 11) 1262 | -9/Materials | Core integrity fell below 20% 1278 | -9/Materials | Destroyed by G-34 Mercenary with Small Laser Last Messages --------------- U-05 Engineer lays Concrete. The unstable cave ceiling collapses. U-05 Engineer lays Concrete. U-05 Engineer builds a Wall. U-05 Engineer lays Concrete. U-05 Engineer builds a Wall. W-16 Scout sends out distress signal. U-05 Engineer lays Concrete. U-05 Engineer builds a Wall. U-05 Engineer lays Concrete. EXIT=FOUND ALERT: Hostiles spotted, dispatching reinforcements to Terminal M009. Lgt. Treads destroyed. Heat Sink melted. Y-45 Defender destroyed. Sml. Laser destroyed. R-06 Scavenger collects Lgt. Treads. W-16 Scout sends out distress signal. R-06 Scavenger collects Lgt. Armor Plating. Map ----- +----------------------------------------------------+ | ?????????????????????????????????????????????????? | | ?????????????????????????????????????????????????? | | ?????????????????????????????????????????????????? | | ?????????????????????????????????????????????????? | | ?????????????????????????????????????????????????? | | ?????????????????????????????????????????????????? | | ?????????????????????????????????????????????????? | | ?????????????????????????????????????????????????? | | ?????????????????????????????????????????????????? | | ?????????????????????????????????????????????????? | | ???????????????????????? ??????????????????????? | | ???????????????????????? ??????????????????????? | | ??????????????????????##w ##????????????????????? | | ?????????????????????? #????????????????????? | | ??????????????????????" #????????????????????? | | ??????????????????????! #????????????????????? | | ??????????????????????" < #????????????????????? | | ??????????????????????? #????????????????????? | | ??????????????????????? ?????????????????????? | | ??????????????????????? ?????????????????????? | | ???????????????####??### ##???#????????????????? | | ???????????????# **??? # t # ??? ????????????????? | | ???????????????# ***???/gg +?"S ????????????????? | | ???????????????# ***???#r #?""" ????????????????? | | ????????????????# ""???#r #??"" ????????????????? | | ???????????????##S""####t@ #?? ????????????????? | | ?????????????#?# "" # #?? ????????????????? | | ???????????### # + #??#+############?????? | | ???????????# # # #??# ## %= #?????? | | ?????? # # ##+###### ##?# ## % #?????? | | ?????? # ### ## """ """ #?????? | | ??????????# # % # """ """ #?????? | | ??????????# + T / """ """ #?????? | | ??????????# %# # #?????? | | ??????????## # ## # #?????? | | ???????????# !# ###%% # #?????? | | ???????????# # #?# ###########?????? | | ???????????## ## #?# #???????????????? | | ????????????##+####+#### #?# #???????????????? | | ???????????????????????# #?# #########???????? | | ??????????????????????? ?# ## #???????? | | ?????????????????????? "" ## % ## #???????? | | ?????????????????????? T ##% ## #???????? | | ????????????????????? ##% %## #???????? | | ????????????????????### # != # #???????? | | ??????????????????????####### !! # #???????? | | ????????????????????????????# ! = + #???????? | | ????????????????????????????# [= # #??????## | | ????????????????????????????# # #??????# | | ????????????????????????????####### ] #??????# | +----------------------------------------------------+ Best States ------------- Heat Dissipation 38 Energy Generation 10 Energy Capacity 250 Matter Stores 300 Matter Capacity 300 Sight Range 18 Terrain Scan Density 10 Evasion (%) 55 Recoil Reduction 2 Item Schematics ----------------- None Robot Schematics ------------------ None Fabricated ------------ Nothing Alien Tech Used ----------------- None Achievements -------------- None Challenges ------------ None Game ------ Seed HardlightProjectionGenerator Manual? 0 Play Time 00:11:12 Cumulative 12.4 hours Start 2024.04.09 @ 15:48:49 End 2024.04.09 @ 16:48:29 Sessions 1 Manual Loads 0 Difficulty Rogue Special Mode None Game No. 31 Rogue 29 Adventurer 2 Explorer 0 Win Type - Total 0 Types 0/0/0/0/0/0/0/0/0 Lore% 8 Gallery% 22 Achievement% 16 Wizard Run 0 Options --------- Layout 1 ASCII 0 Keyboard 0 Movement Mouse Keybinds 0 Fullscreen 1 Font 16/SmallcapsGlow Map View 27x19 Zoom Use 99% Tactical HUD 0 Map Filters NONE Filters NONE Steam 1 RUN: 3e8ce62b-3afc-4261-8444-23061148d609